bitfinex/quotes_ETHUSD_20250802
["timestamp","ask_amount","ask_price","bid_price","bid_amount"]
[1754093915040,2.86362522,3492.1,3491.3,4.9928]
[1754093915248,4.977,3492.5,3491.5,0.4748]
[1754093915582,2.86357535,3492.2,3491.8,0.4768]
[1754093915773,2.86363605,3492.1,3491.8,0.002]
[1754093916358,2.86337247,3492.4,3491.8,0.002]
[1754093916568,2.8636219,3492.1,3491.8,0.002]
[1754093916773,2.86349416,3492.3,3491.8,0.002]
[1754093917288,2.86361646,3492.1,3491.8,0.002]
[1754093917473,3.80805554,3492.2,3491.8,0.002]
[1754093917874,2.86362429,3492.1,3491.8,0.002]
[1754093918075,3.80804693,3492.2,3491.8,0.002]
[1754093918551,0.9445,3492.2,3491.8,0.002]
[1754093918746,2.86339227,3492.4,3491.8,0.002]
[1754093918948,2.86331149,3492.5,3491.9,0.9144]
[1754093919191,2.86321177,3492.6,3492.0,3.33843594]
[1754093919695,2.86306855,3492.8,3492.2,2.86347122]
[1754093919859,7.38097927,3492.9,3492.2,2.86347122]
[1754093920059,7.38097927,3492.9,3492.1,0.9144]
[1754093920060,5.63682772,3492.9,3492.3,2.86343449]
[1754093920387,2.86289979,3493.0,3492.4,0.4748]
[1754093920893,2.86289979,3493.0,3492.4,3.3381512]
[1754093921249,2.86295074,3492.9,3492.4,0.4748]
[1754093921848,2.86295074,3492.9,3492.0,4.518]
[1754093921849,0.001,3492.9,3492.0,4.518]
[1754093922053,0.001,3492.9,3492.8,2.86303252]
[1754093922356,0.001,3492.9,3492.8,7.38003252]
[1754093922555,0.001,3492.9,3492.8,8.29443252]
[1754093923087,1e-08,3493.3,3493.2,3.41270468]
[1754093923275,1e-08,3493.3,3493.2,7.0952702]
[1754093923592,1e-08,3493.3,3493.2,8.0096702]
[1754093923951,1e-08,3493.3,3493.2,8.1528702]
[1754093925292,1e-08,3493.3,3493.2,12.6688702]
[1754093930297,7.52146316,3495.0,3493.2,12.6688702]
[1754093930298,1e-08,3493.7,3493.6,3.41237691]
[1754093930499,1e-08,3493.7,3493.6,11.85387687]
[1754093930661,1e-08,3493.7,3493.6,11.99707687]
[1754093930862,1e-08,3493.7,3493.6,12.91147687]
[1754093931763,1e-08,3493.7,3493.6,12.76827687]
[1754093932069,1e-08,3493.7,3493.6,12.91147687]
[1754093932664,1e-08,3493.7,3493.6,13.28263204]
[1754093933363,1e-08,3493.7,3493.6,22.90773204]
[1754093933975,1e-08,3493.7,3493.6,18.19221204]
[1754093934188,1e-08,3493.7,3493.6,17.39375804]
[1754093934358,1e-08,3493.7,3493.6,10.25849014]
[1754093934570,1e-08,3493.7,3493.6,13.12086705]
[1754093935796,1e-08,3493.7,3493.6,13.61236705]
[1754093935956,1e-08,3493.7,3493.6,13.32190305]
[1754093936398,0.4905,3495.8,3495.7,2.86065737]
[1754093936584,0.4905,3495.8,3495.7,7.37265737]
[1754093936768,0.4905,3495.8,3495.7,7.51585737]
[1754093936959,0.9322,3495.8,3495.7,7.51585737]
[1754093937709,0.001,3495.9,3495.8,2.86057554]
[1754093939201,0.4915,3495.9,3495.8,2.86057554]
[1754093939497,0.9332,3495.9,3495.8,7.37057554]
[1754093940402,0.4915,3495.9,3495.8,7.37057554]
[1754093940608,0.4915,3495.9,3495.8,7.36957554]
[1754093940609,0.9332,3495.9,3495.8,7.36957554]
[1754093941113,0.9332,3495.9,3495.8,2.86057554]
[1754093941413,0.001,3495.9,3495.8,7.91957554]
[1754093942664,0.001,3495.9,3495.8,2.86057554]
[1754093942868,0.9332,3495.9,3495.8,4.509]
[1754093943179,1.31255112,3495.9,3495.8,7.36957554]
[1754093943488,0.9332,3495.9,3495.8,7.36957554]
[1754093943689,0.001,3495.9,3495.8,7.36957554]
[1754093944002,0.9332,3495.9,3495.8,7.36857554]
[1754093944206,0.001,3495.9,3495.8,7.36857554]
[1754093944515,0.001,3495.9,3495.8,9.43140407]
[1754093944808,0.001,3496.2,3496.1,2.86033008]
[1754093945007,0.001,3496.2,3496.1,7.91833008]
[1754093945392,0.4905,3497.1,3497.0,2.85959393]
[1754093945596,0.4905,3497.1,3497.0,7.36759393]
[1754093946106,0.4905,3497.4,3497.0,4.508]
[1754093946265,0.4905,3497.4,3496.2,2.86024826]
[1754093946266,0.9322,3497.3,3495.8,4.37333012]
[1754093946473,2.85964584,3497.0,3496.1,2.86031996]
[1754093946694,0.9322,3496.9,3496.3,2.86009021]
[1754093946866,2.85964584,3497.0,3496.4,7.36708054]
[1754093946867,0.9322,3496.8,3496.4,7.36708054]
[1754093947066,14.03662173,3497.3,3496.7,2.85983927]
[1754093947067,16.89599126,3497.3,3496.7,2.85983927]
[1754093947268,2.85943095,3497.2,3496.6,2.85988788]
[1754093947597,3.79172258,3497.1,3496.5,7.36697648]
[1754093947794,1.40366217,3497.2,3496.5,4.507]
[1754093948115,2.85967571,3496.9,3496.5,4.507]
[1754093948272,0.9322,3496.8,3496.5,4.507]
[1754093948616,14.96882173,3496.7,3494.8,2.86135153]
[1754093948906,0.9322,3496.6,3496.3,2.86010402]
[1754093949115,0.4905,3496.5,3496.3,2.86010402]
[1754093949268,0.4905,3496.5,3496.4,2.86008465]
[1754093949664,0.4905,3496.5,3496.3,2.86014733]
[1754093949905,0.4905,3496.5,3496.4,2.86008465]
[1754093950102,0.4417,3496.6,3496.4,4.506]
[1754093950302,0.4905,3496.8,3496.6,2.85990106]
[1754093950606,0.4417,3497.0,3496.7,2.85983927]
[1754093950771,1.30493654,3497.0,3496.7,2.85983927]
[1754093950968,3.0,3497.8,3496.9,2.85967571]
[1754093950969,0.4417,3497.4,3496.9,2.85967571]
[1754093951180,0.4905,3497.3,3496.9,7.36567571]
[1754093951384,2.85918948,3497.5,3497.3,0.1432]
[1754093951579,3.1432,3497.8,3497.2,0.1432]
[1754093951797,2.85934864,3497.3,3497.2,0.1432]
[1754093951982,2.85921896,3497.5,3497.2,0.1432]
[1754093952182,2.15448268,3497.7,3497.2,0.1432]
[1754093952396,0.4417,3497.9,3497.8,2.8589399]
[1754093952566,0.4905,3498.0,3497.9,2.85885817]
[1754093952769,0.9322,3498.3,3497.8,0.1432]
[1754093953112,0.9322,3498.1,3497.8,3.00213332]
[1754093953305,0.9322,3498.1,3497.9,2.85882531]
[1754093953477,0.9322,3498.1,3498.0,3.00197644]
[1754093954083,0.4905,3498.1,3498.0,3.00197644]
[1754093954626,0.9322,3498.1,3498.0,0.1432]
[1754093954767,5.49250166,3498.1,3497.3,2.85929812]
[1754093954971,0.9322,3498.0,3497.6,0.1432]
[1754093955208,0.9322,3497.9,3497.1,2.8594753]
[1754093955370,0.9322,3497.9,3497.6,2.85907126]
[1754093955746,0.2287392,3498.0,3497.7,0.1432]
[1754093955747,3.0875198,3498.0,3497.7,0.1432]
[1754093955869,0.2287392,3498.0,3497.7,0.1432]
[1754093956209,0.9322,3497.9,3497.7,0.1432]
[1754093956385,0.9322,3497.8,3497.7,0.1432]
[1754093957270,0.9322,3497.8,3497.6,0.1432]
[1754093957503,0.9322,3497.7,3497.6,0.1432]
[1754093958494,0.9322,3497.7,3497.4,2.85925748]
[1754093958697,0.1432,3497.8,3497.4,2.85925748]
[1754093959007,0.4905,3497.6,3497.5,2.85918513]
[1754093959308,0.4905,3497.6,3496.9,4.504]
[1754093959309,1.76121757,3497.7,3497.4,2.8591894]
[1754093959511,0.34483312,3497.9,3497.6,0.1432]
[1754093959718,0.4905,3497.7,3497.6,0.1432]
[1754093961425,0.4417,3497.8,3497.6,3.00230338]
[1754093961583,0.34483312,3497.9,3497.6,0.1432]
[1754093961778,0.34483312,3497.9,3497.6,3.00228908]
[1754093962019,0.34483312,3497.9,3497.8,0.1432]
[1754093962229,1.29973312,3497.9,3497.8,0.1432]
[1754093962386,0.9549,3497.9,3497.8,0.1432]
[1754093962584,0.2287392,3498.0,3497.8,0.1432]
[1754093963587,6.873,3498.5,3498.0,2.85877644]
[1754093963817,6.873,3498.5,3498.2,2.85855969]
[1754093963818,0.4911,3498.5,3498.2,2.85855969]
[1754093964024,4.9931,3498.5,3498.3,2.85851887]
[1754093964219,0.4638,3498.7,3498.2,2.85859247]
[1754093964405,2.09928527,3498.6,3498.2,2.85859247]
[1754093964722,2.59038527,3498.6,3498.3,0.1432]
[1754093965302,0.1432,3498.8,3498.3,0.1432]
[1754093965529,0.97562967,3499.8,3498.9,2.85800714]
[1754093965683,0.1432,3499.5,3499.0,3.00115431]
[1754093965887,1.4658,3499.4,3499.0,3.00115063]
[1754093966109,0.4911,3499.3,3499.1,2.85786049]
[1754093966387,0.4638,3499.4,3499.1,2.85787268]
[1754093966724,4.501,3499.4,3499.2,0.1432]
[1754093969725,4.9921,3499.4,3499.2,0.1432]
[1754093970645,3.81230745,3499.7,3499.2,0.1432]
[1754093970951,0.4911,3499.6,3499.2,0.1432]
[1754093971153,4.5,3499.5,3499.2,0.1432]
[1754093971315,4.9911,3499.5,3499.2,0.1432]
[1754093972026,0.4911,3499.5,3499.2,0.1432]
[1754093972219,4.5,3499.4,3499.2,0.1432]
[1754093972954,4.9911,3499.4,3499.2,0.1432]
[1754093973126,4.9911,3499.4,3499.0,2.8579123]
[1754093973545,4.9911,3499.4,3498.9,2.85800964]
[1754093973741,4.5,3499.4,3499.0,2.85795914]
[1754093974046,0.4638,3499.6,3498.9,0.4785]
[1754093974355,4.499,3499.5,3499.0,2.85794168]
[1754093974557,7.35658851,3499.5,3498.9,2.85800668]
[1754093974763,7.35658851,3499.5,3498.8,0.4785]
[1754093974764,4.9901,3499.5,3498.8,3.33659166]
[1754093975053,4.9901,3499.5,3499.0,2.85795941]
[1754093975439,0.4911,3499.5,3499.1,2.85784293]
[1754093975631,3.32127648,3499.6,3499.0,3.33642451]
[1754093975826,1.29015187,3499.6,3499.1,2.85785334]
[1754093976045,4.499,3499.5,3499.0,3.33643064]
[1754093976357,4.499,3499.5,3499.1,2.85785728]
[1754093976728,1.78125187,3499.6,3499.1,2.85785728]
[1754093976729,4.498,3499.4,3499.2,0.4785]
[1754093976958,4.498,3499.4,3499.1,0.472]
[1754093977157,4.498,3499.4,3499.1,2.85787654]
[1754093977314,3.68388326,3499.6,3498.0,7.36073118]
[1754093977315,0.82635187,3499.6,3499.2,0.4785]
[1754093977520,4.498,3499.3,3499.1,2.85785685]
[1754093977960,4.498,3499.3,3499.1,2.85787198]
[1754093978127,4.498,3499.3,3498.2,0.472]
[1754093978334,0.98375012,3499.2,3498.0,4.502]
[1754093978550,2.85813799,3498.8,3498.2,2.85855844]
[1754093978752,7.35620513,3498.7,3498.1,2.85866298]
[1754093979056,2.8584623,3498.4,3497.8,2.85887435]
[1754093979230,5.4529,3498.3,3497.4,4.498]
[1754093979435,4.498,3498.2,3497.9,2.85879544]
[1754093979742,0.4911,3499.0,3498.0,0.9505]
[1754093979914,2.85817704,3498.8,3498.1,3.33713526]
[1754093980121,2.85807554,3498.9,3498.1,0.4785]
[1754093980358,4.497,3498.8,3498.2,2.858613]
[1754093980564,4.497,3498.8,3497.4,4.498]
[1754093980725,17.8497641,3498.7,3497.5,2.85915551]
[1754093980925,2.85864809,3498.2,3497.5,2.85913586]
[1754093981136,4.497,3498.1,3497.6,2.85902635]
[1754093981341,4.497,3498.1,3497.9,2.85879877]
[1754093981524,4.497,3498.1,3497.8,2.85890815]
[1754093981733,4.497,3498.1,3497.8,2.85892414]
[1754093981960,4.497,3498.2,3497.8,2.85892414]
[1754093982529,4.497,3498.2,3497.7,2.85899057]
[1754093982724,4.497,3498.2,3497.7,2.85894192]
[1754093982925,4.497,3498.2,3497.2,6.70413068]
[1754093982926,0.9549,3498.1,3496.9,0.4785]
[1754093983125,2.85901792,3497.8,3497.2,2.85941784]
[1754093983439,3.35012164,3497.7,3497.6,0.1432]
[1754093983623,3.84277176,3497.7,3497.6,0.1432]
[1754093983826,3.84277176,3497.7,3496.3,0.472]
[1754093984048,0.1432,3497.4,3496.9,0.1432]
[1754093984221,3.49361388,3497.4,3496.9,0.1432]
[1754093984438,4.497,3497.3,3497.0,0.4785]
[1754093984641,4.497,3497.3,3496.6,2.85986605]
[1754093984878,7.35638019,3497.3,3497.2,0.1432]
[1754093985027,7.84748019,3497.3,3497.2,0.1432]
[1754093985232,4.497,3497.3,3497.2,0.1432]
[1754093985823,4.497,3497.5,3497.2,0.1432]
[1754093986377,1.0981,3497.7,3497.2,0.1432]
[1754093986378,3.95712787,3497.7,3497.2,0.1432]
[1754093986530,0.4911,3497.4,3497.2,0.1432]
[1754093986960,3.81424864,3497.3,3497.2,0.1432]
[1754093987178,2.85968178,3496.9,3496.3,3.33864194]
[1754093987332,7.35668178,3496.9,3496.3,3.33864194]
[1754093987532,7.35668178,3496.9,3496.8,0.1432]
[1754093987835,0.1432,3497.4,3496.8,0.6217]
[1754093987836,4.497,3497.0,3496.8,0.6217]
[1754093988035,4.497,3497.0,3496.8,0.1432]
[1754093989436,4.497,3497.3,3496.9,3.3381264]
[1754093989642,4.497,3497.3,3497.0,0.4785]
[1754093989839,4.497,3497.3,3497.2,0.1432]
[1754093990279,0.39571279,3497.6,3497.2,0.1432]
[1754093990484,4.497,3497.4,3497.2,0.6217]
[1754093990656,4.497,3497.4,3497.2,0.4785]
[1754093990975,3.35049914,3497.3,3496.7,2.85982376]
[1754093991175,3.81429914,3497.3,3497.1,0.1432]
[1754093991380,0.9549,3497.3,3497.1,0.1432]
[1754093991539,0.4911,3497.3,3497.1,0.1432]
[1754093991739,8.13147134,3497.4,3497.1,0.1432]
[1754093992178,4.497,3497.3,3497.1,0.1432]
[1754093992983,2.8594304,3497.2,3497.1,0.1432]
[1754093993182,3.7614304,3497.2,3497.1,0.1432]
[1754093993485,0.902,3497.2,3497.1,0.1432]
[1754093993859,3.7614304,3497.2,3497.1,0.1432]
[1754093994689,7.35637703,3497.3,3497.1,0.1432]
[1754093995045,2.8594304,3497.2,3497.1,0.1432]
[1754093995271,7.82857589,3497.3,3497.1,0.1432]
[1754093995788,2.8594304,3497.2,3497.1,0.1432]
[1754093996244,3.3316304,3497.2,3497.1,0.1432]
[1754093996741,0.4722,3497.2,3497.1,0.1432]
[1754093996967,3.3316304,3497.2,3497.1,0.1432]
[1754093997185,4.44340117,3497.2,3497.1,0.1432]
[1754093997460,2.85963034,3497.0,3496.4,2.86006612]
[1754093997661,4.497,3496.9,3496.4,2.86005804]
[1754093997887,4.497,3496.9,3496.5,2.85994824]
[1754093998097,4.497,3496.9,3496.8,0.1432]
[1754093998306,4.497,3496.9,3496.8,0.6092]
[1754093998595,4.496,3497.1,3496.8,1.0759]
[1754093998762,4.496,3497.1,3496.8,0.6099]
[1754093998958,4.496,3497.1,3497.0,0.1432]
[1754093999159,1.01111279,3497.6,3497.0,0.1432]
[1754093999160,0.53891279,3497.6,3497.0,0.6092]
[1754093999392,4.496,3497.6,3497.2,2.8594304]
[1754093999569,4.496,3497.6,3497.5,0.1432]
[1754093999771,4.496,3497.6,3497.5,0.6092]
[1754094000075,4.496,3497.6,3497.5,3.93508513]
[1754094000271,3.1432,3498.1,3497.6,2.85910054]
[1754094000474,4.496,3498.0,3497.5,0.6099]
[1754094000674,4.496,3497.9,3497.6,0.9327]
[1754094000898,4.496,3497.9,3497.7,0.9327]
[1754094001097,4.496,3497.9,3497.8,0.1432]
[1754094001295,2.85870285,3498.1,3497.8,0.1432]
[1754094001457,4.496,3498.0,3497.8,0.6092]
[1754094001802,4.496,3498.0,3497.8,0.466]
[1754094002095,4.496,3498.0,3497.9,0.1432]
[1754094002864,0.001,3498.2,3497.9,0.6092]
[1754094003066,4.496,3498.1,3497.9,0.6092]
[1754094003290,4.496,3498.0,3497.9,0.6092]
[1754094003786,4.496,3498.1,3497.9,0.6092]
[1754094003990,4.496,3498.1,3497.9,0.1432]
[1754094004685,2.85967099,3498.2,3497.9,0.1432]
[1754094004879,1.36963214,3498.2,3497.9,0.1432]
[1754094005133,4.22827153,3498.2,3498.1,0.1432]
[1754094005620,1.36963214,3498.2,3498.1,0.1432]
[1754094006186,4.22824514,3498.2,3498.1,0.1432]
[1754094007712,4.70044514,3498.2,3498.1,0.1432]
[1754094008115,5.15909526,3498.2,3498.1,0.1432]
[1754094008317,5.13024514,3498.2,3498.1,0.1432]
[1754094008627,4.22824514,3498.2,3498.1,0.1432]
[1754094008985,8.72224514,3498.2,3498.1,0.1432]
[1754094009189,8.72224514,3498.2,3496.8,2.85972305]
[1754094009190,2.85900097,3497.8,3496.7,3.0]
[1754094009426,2.85900097,3497.8,3497.6,0.1432]
[1754094009427,4.494,3497.7,3497.6,0.1432]
[1754094011106,4.494,3498.0,3497.6,3.93499526]
[1754094011309,4.494,3498.0,3497.7,0.9327]
[1754094011525,0.001,3498.2,3497.9,0.1432]
[1754094011840,7.353613,3498.2,3498.1,0.1432]
[1754094012145,8.3749298,3498.2,3498.1,0.1432]
[1754094012502,0.001,3498.2,3498.1,0.1432]
[1754094012815,0.001,3498.2,3498.1,1.0759]
[1754094013012,0.001,3498.2,3498.1,0.6092]
[1754094013446,0.001,3498.2,3498.1,0.1432]
[1754094014246,0.001,3498.2,3498.1,0.6092]
[1754094014602,0.001,3498.2,3498.1,0.1432]
[1754094014952,0.001,3498.2,3497.2,0.4667]
[1754094014953,3.55,3498.1,3496.9,0.1432]
[1754094015107,2.85943921,3497.2,3496.9,0.1432]
[1754094015310,3.1432,3497.6,3497.1,0.1432]
[1754094015529,2.8594304,3497.2,3497.1,0.1432]
[1754094015903,7.38128052,3497.2,3496.5,0.466]
[1754094016061,2.85992205,3496.6,3496.1,0.002]
[1754094016210,4.493,3496.7,3496.6,0.1432]
[1754094016414,2.85949578,3497.2,3496.6,0.466]
[1754094016707,4.493,3497.1,3496.6,0.466]
[1754094016911,7.35252386,3497.1,3496.7,0.4667]
[1754094017134,7.35252386,3497.1,3497.0,0.1432]
[1754094017778,4.493,3497.1,3497.0,0.6092]
[1754094017960,4.492,3497.4,3497.0,0.9327]
[1754094018164,2.85927145,3497.4,3497.1,0.9327]
[1754094018357,4.4906885,3497.5,3497.2,0.9327]
[1754094018525,7.3498773,3497.5,3497.2,0.9327]
[1754094018724,2.85912844,3497.6,3497.3,0.466]
[1754094018920,2.85918815,3497.5,3497.3,0.6092]
[1754094019267,0.1432,3497.9,3497.3,0.6092]
[1754094019268,7.35212886,3497.6,3497.3,0.6092]
[1754094019466,4.493,3497.6,3497.3,0.6092]
[1754094019678,0.001,3498.2,3497.3,0.466]
[1754094019878,7.35169557,3498.1,3497.5,0.1432]
[1754094020034,2.85880841,3498.0,3497.9,0.1432]
[1754094020234,2.85880841,3498.0,3496.4,0.466]
[1754094020235,0.902,3498.0,3496.4,0.466]
[1754094020442,2.85972281,3496.9,3496.2,0.4667]
[1754094020748,7.35267571,3496.9,3496.8,0.1432]
[1754094021382,2.85941984,3497.3,3496.2,3.32693863]
[1754094021680,2.85958134,3497.1,3496.8,0.1432]
[1754094021864,2.85958134,3497.1,3496.4,3.3260348]
[1754094021865,2.85959579,3497.0,3496.4,0.466]
[1754094022065,2.85959579,3497.0,3496.4,3.32608007]
[1754094022266,2.85959579,3497.0,3496.9,0.1432]
[1754094022461,2.85968779,3496.9,3496.4,0.466]
[1754094022661,4.492,3496.9,3496.8,0.1432]
[1754094022981,7.38052583,3496.9,3496.8,0.1432]
[1754094023277,4.492,3496.9,3496.8,0.1432]
[1754094023459,4.52085012,3496.9,3496.8,0.1432]
[1754094023665,7.38052583,3496.9,3496.8,0.1432]
[1754094023863,7.35167571,3496.9,3496.8,0.1432]
[1754094024063,4.492,3496.9,3496.8,0.1432]
[1754094024443,7.35167571,3496.9,3496.8,0.1432]
[1754094025586,4.492,3496.9,3496.8,0.1432]
[1754094025756,4.52085012,3496.9,3496.8,0.1432]
[1754094026187,7.38052583,3496.9,3496.8,0.1432]
[1754094026374,7.35167571,3496.9,3496.8,0.1432]
[1754094026762,4.492,3496.9,3496.8,0.1432]
[1754094027259,7.35167571,3496.9,3496.8,0.1432]
[1754094027788,4.492,3496.9,3496.8,0.1432]
[1754094028182,4.52085012,3496.9,3496.8,0.1432]
[1754094028380,5.54484322,3496.9,3496.8,0.1432]
[1754094028548,9.28666881,3496.9,3496.8,0.1432]
[1754094028965,8.81396881,3496.9,3496.8,0.1432]
[1754094029193,8.37566881,3496.9,3496.8,0.1432]
[1754094029561,2.85967571,3496.9,3496.8,0.1432]
[1754094029760,0.1432,3497.3,3496.8,0.1432]
[1754094030092,2.85931685,3497.4,3496.9,0.9308]
[1754094030487,2.85931685,3497.4,3496.9,0.4524]
[1754094030679,2.85931685,3497.4,3497.0,0.4784]
[1754094031660,4.492,3497.3,3497.0,0.4784]
[1754094034196,5.27439193,3497.3,3496.8,2.8597319]
[1754094034600,4.492,3497.3,3496.9,3.33801764]
[1754094034765,4.492,3497.3,3496.9,0.4784]
[1754094036294,2.85933214,3497.4,3496.9,0.4784]
[1754094036594,4.491,3497.3,3496.9,0.4784]
[1754094037085,5.85881703,3498.0,3497.0,3.33793758]
[1754094037086,2.85885817,3497.9,3497.0,3.33793758]
[1754094037402,2.85911998,3497.6,3497.1,0.4784]
[1754094037586,7.35018573,3497.5,3497.1,0.4784]
[1754094037959,7.35018573,3497.5,3497.0,0.4524]
[1754094037960,7.35018573,3497.5,3496.9,3.3380501]
[1754094038437,2.85918573,3497.5,3496.9,3.3380501]
[1754094038612,0.02885012,3497.4,3496.9,3.3380501]
[1754094038763,0.02885012,3497.4,3497.0,0.4784]
[1754094038964,0.02885012,3497.4,3496.4,2.86004631]
[1754094038965,1.05265751,3497.4,3496.4,0.4784]
[1754094039183,2.8594304,3497.2,3496.4,3.33843908]
[1754094039364,2.85964945,3497.0,3496.4,0.4784]
[1754094039564,2.85970279,3496.9,3496.4,0.4784]
[1754094039806,0.4383,3496.8,3496.3,2.86013504]
[1754094039976,2.85970015,3496.9,3496.7,0.1432]
[1754094040178,5.402,3497.1,3496.7,0.1432]
[1754094040490,2.85984794,3496.7,3496.4,0.1432]
[1754094040690,4.491,3496.7,3496.4,0.1432]
[1754094040868,3.77092106,3496.6,3496.4,0.1432]
[1754094041199,0.911,3496.6,3496.4,0.1432]
[1754094041509,0.4727,3497.1,3496.5,0.4784]
[1754094041675,2.85971508,3496.9,3496.5,0.4784]
[1754094042240,7.49382085,3497.0,3496.5,0.4784]
[1754094042415,5.22388783,3497.0,3496.5,0.4784]
[1754094042567,4.491,3497.1,3496.9,0.1432]
[1754094043165,7.35051463,3497.1,3496.9,0.1432]
[1754094043390,4.491,3497.1,3496.9,0.1432]
[1754094043700,7.35053057,3497.1,3496.9,0.1432]
[1754094044700,2.85981045,3496.8,3496.1,0.4804]
[1754094044901,7.37966057,3496.8,3496.7,0.1432]
[1754094045101,9.48509371,3496.8,3496.7,0.1432]
[1754094045302,6.62528326,3496.8,3496.7,0.1432]
[1754094045477,5.71428326,3496.8,3496.7,0.1432]
[1754094045796,0.1432,3497.2,3496.7,0.6216]
[1754094046031,4.49,3497.1,3496.7,0.6216]
[1754094046244,2.85951599,3497.1,3496.8,0.4784]
[1754094046442,2.85944258,3497.2,3496.8,0.4784]
[1754094046656,4.49,3497.1,3496.8,0.4784]
[1754094046807,4.49,3497.1,3496.7,0.1432]
[1754094046808,2.85953362,3497.1,3496.7,0.1432]
[1754094047003,7.34953362,3497.1,3496.7,0.1432]
[1754094047203,2.85953362,3497.1,3496.7,0.1432]
[1754094047605,0.1432,3497.3,3496.7,0.1432]
[1754094047913,4.49,3497.3,3497.0,0.1432]
[1754094048238,4.49,3497.3,3497.0,0.6216]
[1754094048615,0.1432,3497.5,3497.1,2.85950887]
[1754094048824,4.6332,3497.5,3497.2,0.4784]
[1754094049044,7.49243722,3497.5,3497.0,0.1432]
[1754094049431,3.77026688,3497.4,3496.3,3.0]
[1754094049620,3.7702959,3497.4,3497.0,0.1432]
[1754094049820,5.75944853,3497.5,3497.0,3.4811897]
[1754094050141,4.49,3497.5,3497.1,0.4784]
[1754094050446,4.49,3497.4,3497.1,0.4784]
[1754094050648,2.85926688,3497.4,3497.0,0.1432]
[1754094050808,8.26026688,3497.4,3497.0,0.1432]
[1754094051010,9.38652467,3497.4,3497.0,0.1432]
[1754094051209,2.85936412,3497.3,3497.0,0.1432]
[1754094051530,6.55425779,3497.4,3497.0,0.1452]
[1754094051703,2.85935206,3497.3,3497.0,0.1452]
[1754094051906,2.06425779,3497.4,3497.0,0.1452]
[1754094052139,0.938,3497.4,3497.0,0.1452]
[1754094052349,4.489,3497.3,3497.0,0.1452]
[1754094052942,4.489,3497.3,3497.0,0.6323]
[1754094053451,7.34821393,3497.5,3497.0,0.6323]
[1754094053648,2.85926761,3497.4,3497.0,0.6323]
[1754094053817,3.89432658,3497.4,3497.0,0.6323]
[1754094054019,3.89432658,3497.4,3497.0,0.1452]
[1754094054020,0.4468,3497.3,3497.0,0.1452]
[1754094054219,0.938,3497.3,3497.0,0.1452]
[1754094054453,2.85926688,3497.4,3497.0,0.6323]
[1754094054620,3.0023335,3497.6,3497.1,0.4871]
[1754094054819,7.34818664,3497.5,3497.0,3.46618925]
[1754094055039,2.85918664,3497.5,3497.2,0.4871]
[1754094055216,2.85920234,3497.5,3497.2,0.4871]
[1754094055658,7.34820234,3497.5,3497.2,0.4871]
[1754094055822,2.85927094,3497.4,3497.0,0.6066]
[1754094056154,2.85927094,3497.4,3497.0,1.0937]
[1754094056325,2.85927094,3497.4,3497.0,0.6323]
[1754094056533,3.72130678,3497.4,3497.0,0.6323]
[1754094057464,0.86203584,3497.4,3497.0,0.1452]
[1754094057631,4.488,3497.4,3497.1,0.4871]
[1754094057840,2.85927542,3497.4,3497.2,0.1432]
[1754094058025,7.34727542,3497.4,3497.2,0.1432]
[1754094058359,2.85934864,3497.3,3497.2,0.1432]
[1754094058562,4.8180036,3497.3,3497.2,0.1432]
[1754094059746,2.85951216,3497.1,3497.0,0.002]
[1754094059959,3.82631257,3497.2,3497.0,0.1452]
[1754094060166,8.28551216,3497.1,3497.0,0.1452]
[1754094060466,9.50494989,3497.1,3497.0,0.002]
[1754094061274,4.07894989,3497.1,3497.0,0.002]
[1754094061473,8.56694989,3497.1,3497.0,0.002]
[1754094062197,9.50494989,3497.1,3497.0,0.002]
[1754094062609,8.56694989,3497.1,3497.0,0.002]
[1754094067135,9.50494989,3497.1,3497.0,0.002]
[1754094069420,13.05494989,3497.1,3497.0,0.002]
[1754094070521,11.70814989,3497.1,3497.0,0.002]
[1754094070881,4.6292,3497.1,3497.0,0.002]
[1754094071087,7.48871216,3497.1,3497.0,0.002]
[1754094071618,4.486,3497.1,3497.0,0.002]
[1754094071818,7.34551216,3497.1,3497.0,0.002]
[1754094072005,4.486,3497.1,3497.0,0.002]
[1754094072729,7.34551216,3497.1,3497.0,0.002]
[1754094073422,4.486,3497.1,3497.0,0.002]
[1754094073732,7.34551216,3497.1,3497.0,0.002]
[1754094074089,4.486,3497.1,3497.0,0.002]
[1754094074428,4.486,3497.1,3497.0,0.4891]
[1754094074902,7.34551216,3497.1,3497.0,0.4891]
[1754094075226,7.34551216,3497.1,3497.0,0.002]
[1754094075625,9.31831972,3497.1,3497.0,0.002]
[1754094076627,8.82711972,3497.1,3497.0,0.002]
[1754094076832,4.485,3497.1,3497.0,0.4891]
[1754094079837,0.1432,3497.2,3497.0,0.4891]
[1754094079838,4.6282,3497.2,3497.1,2.85951216]
[1754094080043,4.484,3497.3,3497.1,0.1432]
[1754094080196,4.484,3497.2,3497.0,0.002]
[1754094080402,7.34346786,3497.2,3497.0,0.002]
[1754094081121,4.484,3497.2,3497.0,0.002]
[1754094081319,7.34347823,3497.2,3497.0,0.002]
[1754094081533,8.15619007,3497.2,3497.0,0.002]
[1754094082418,4.484,3497.2,3497.0,0.002]
[1754094082605,7.34345161,3497.2,3497.0,0.002]
[1754094083152,2.85951216,3497.1,3497.0,0.002]
[1754094083614,7.34345932,3497.2,3497.0,0.002]
[1754094083826,4.484,3497.2,3497.0,0.002]
[1754094084138,7.34345734,3497.2,3497.0,0.002]
[1754094084428,3.77351216,3497.1,3497.0,0.002]
[1754094084631,0.914,3497.1,3497.0,0.002]
[1754094085208,5.75557744,3497.2,3497.0,0.002]
[1754094085431,4.6272,3497.2,3497.0,0.002]
[1754094087409,7.48665482,3497.2,3497.0,0.002]